Cogmind - Beta 10 @@@ ROGUE MODE // 2020.09.15 @ 13:02:13 Player: Espresso Result: Self-destructed Performance ------------- Evolutions (3) 1500 Regions Visited (5) 1000 Robots Destroyed (4) 20 Value Destroyed (40) 40 Prototype IDs (0) 0 Alien Tech Used (0) 0 Bonus (470) 470 TOTAL SCORE: 3030 Bonus ------- Pacifist 470 Cogmind --------- Core Integrity 482/700 Matter 59/300 Energy 100/100 System Corruption 0% Temperature Cool (0) Movement Core (50) Location -7/Lower Caves Parts ------- > --- POWER (2) -------- (None) > --- PROPULSION (6) --- (None) > --- UTILITY (3) ------ Armor Integrity Analyzer > --- WEAPON (2) ------- (None) > --- INVENTORY (4) ---- Light Ion Engine Light Ion Engine Peak State ------------ > --- POWER ------------ Light Deuterium Engine > --- PROPULSION ------- Flight Unit Cesium-ion Thruster > --- UTILITY ---------- Armor Integrity Analyzer > --- WEAPON ----------- Katana > --- INVENTORY -------- Light Ion Engine Light Ion Engine [Rating: 12] Favorites ----------- Power Light Deuterium Engine Engine Light Deuterium Engine Propulsion Flight Unit Flight Unit Flight Unit Utility Armor Integrity Analyzer Processor Armor Integrity Analyzer Weapon Katana Slashing Weapon Katana Build | -11 -10 -9 -8 -7 -7 ------- Run | Scr Mat Mat Mat Fac Low Slots Evolved 6 | . . 2 2 2 . Power 1 | . . 1 . . . Propulsion 4 | . . 1 1 2 . Utility 1 | . . . 1 . . Weapon . | . . . . . . Parts Attached 13 | 1 1 . 11 . . Power 3 | 1 . . 2 . . Engine 3 | 1 . . 2 . . Core . | . . . . . . Reactor . | . . . . . . Propulsion 6 | . 1 . 5 . . Treads . | . . . . . . Leg . | . . . . . . Wheel . | . . . . . . Hover . | . . . . . . Flight 6 | . 1 . 5 . . Utility 1 | . . . 1 . . Device . | . . . . . . Storage . | . . . . . . Processor 1 | . . . 1 . . Hackware . | . . . . . . Protection . | . . . . . . Artifact . | . . . . . . Weapon 3 | . . . 3 . . Energy Gun . | . . . . . . Energy Cannon . | . . . . . . Ballistic Gun . | . . . . . . Ballistic Cannon . | . . . . . . Launcher . | . . . . . . Special Weapon . | . . . . . . Impact Weapon . | . . . . . . Slashing Weapon 3 | . . . 3 . . Piercing Weapon . | . . . . . . Special Melee Weapon . | . . . . . . Unidentified Prototypes . | . . . . . . Parts Lost 4 | . . . 3 . 1 Power . | . . . . . . Propulsion 3 | . . . 3 . . Utility . | . . . . . . Weapon 1 | . . . . . 1 Highest Loss Streak 2 | . . . 2 . 1 Average Slot Usage (%) 25 | . 24 22 29 15 13 Engine 7 | . 14 11 8 . . Flight 5 | . 10 11 5 . . Processor 5 | . . . 7 7 7 Slashing Weapon 6 | . . . 8 7 6 Naked Turns . | . . . . . . Heaviest Build 7 | 3 3 3 7 2 2 Greatest Support 10 | 3 4 4 10 3 3 Greatest Overweight (x) 2 | . . . 2 . . Average Overweight (x) . | . . . . . . Largest Inventory Capacity 4 | 4 4 4 4 4 4 Average Capacity 4 | 4 4 4 4 4 4 Most Carried 3 | . 1 1 3 2 2 Average Carried 1 | . . 1 1 2 2 Final Capacity 4 | 4 4 4 4 4 4 Final Carried 2 | . 1 1 2 2 2 Class Distribution -------------------- 100% | Mutant Dominant Class ---------------- Mutant | -10/Materials Mutant | -9/Materials Mutant | -8/Materials Mutant | -7/Factory Mutant | -7/Lower Caves Resources | -11 -10 -9 -8 -7 -7 ----------- Run | Scr Mat Mat Mat Fac Low Matter Collected 60 | . . . 60 . . Remotely . | . . . . . . Salvage Created 60 | . . . 60 . . Parts 7 | . . . 7 . . Haulers Intercepted . | . . . . . . Recyclers Shooed . | . . . . . . Parts Field Recycled . | . . . . . . Retrieved Matter . | . . . . . . Parts Self-Destructed . | . . . . . . Prevented . | . . . . . . Kills | -11 -10 -9 -8 -7 -7 ------- Run | Scr Mat Mat Mat Fac Low Combat Hostiles Destroyed 4 | . . . 4 . . Melee 4 | . . . 4 . . Classes Destroyed 1 | . . . 1 . . Swarmer 4 | . . . 4 . . Best Kill Streak 4 | . . . 4 . . Combat Bots Only 4 | . . . 4 . . Max Kills in Single Turn 1 | . . . 1 . . Gunslinging . | . . . . . . Exploded . | . . . . . . Melee 1 | . . . 1 . . Uniques/NPCs Destroyed . | . . . . . . Combat | -11 -10 -9 -8 -7 -7 -------- Run | Scr Mat Mat Mat Fac Low Damage Taken 723 | 5 . 102 374 . 242 Core 525 | 4 . 65 238 . 218 Absorbed by Shields . | . . . . . . Core Remaining (%) 83 | 98 98 83 56 . . Volleys Fired . | . . . . . . Largest . | . . . . . . Hottest . | . . . . . . Shots Fired . | . . . . . . Gun . | . . . . . . Cannon . | . . . . . . Launcher . | . . . . . . Special . | . . . . . . Kinetic . | . . . . . . Thermal . | . . . . . . Explosive . | . . . . . . Electromagnetic . | . . . . . . Robot Hit Streak . | . . . . . . Robot Miss Streak . | . . . . . . Penetration Max . | . . . . . . Secondary Targets . | . . . . . . Shots Hit Robots 6 | . . . 5 1 . Core Hits 6 | 2 . . 4 . . Critical Hits . | . . . . . . Critical Kills . | . . . . . . Critical Parts Destroyed . | . . . . . . Melee Attacks 16 | . . . 15 1 . Impact . | . . . . . . Slashing 16 | . . . 15 1 . Piercing . | . . . . . . Sneak Attacks . | . . . . . . Combat Hostiles . | . . . . . . Follow-up Attacks . | . . . . . . Damage Inflicted 239 | 12 . . 174 53 . Guns . | . . . . . . Cannons . | . . . . . . Explosions . | . . . . . . Melee 227 | . . . 174 53 . Ramming 12 | 12 . . . . . Kinetic . | . . . . . . Thermal . | . . . . . . Explosive . | . . . . . . Electromagnetic . | . . . . . . Impact . | . . . . . . Slashing 227 | . . . 174 53 . Piercing . | . . . . . . Highest Corruption . | . . . . . . Average Corruption . | . . . . . . Corruption Purged . | . . . . . . Overload Shots . | . . . . . . Overflow Damage 43 | . . . . 43 . Projectiles . | . . . . . . Explosions . | . . . . . . Melee 43 | . . . . 43 . Knockbacks . | . . . . . . Impact . | . . . . . . Kinetic . | . . . . . . Secondary . | . . . . . . Self-Inflicted Damage 5 | 5 . . . . . Shots . | . . . . . . Rammed 3 | 3 . . . . . Targets Rammed 3 | 3 . . . . . Kicked . | . . . . . . Crushed . | . . . . . . Highest Temperature . | . . . . . . Average Temperature . | . . . . . . Received Heat Transfer 240 | . . 60 117 . 63 Siege Activations . | . . . . . . Robots Corrupted . | . . . . . . Combat Hostiles . | . . . . . . Parts Fried . | . . . . . . Impact Corruptions . | . . . . . . Robots Melted . | . . . . . . Combat Hostiles . | . . . . . . Parts Melted . | . . . . . . Heat Transferred . | . . . . . . Parts Sabotaged . | . . . . . . Parts Stolen . | . . . . . . Parts Stripped . | . . . . . . Power Chain Reactions . | . . . . . . Missiles Intercepted . | . . . . . . Alert | -11 -10 -9 -8 -7 -7 ------- Run | Scr Mat Mat Mat Fac Low Peak Influence 131 | . . 60 131 54 . Initial 54 | . . . 31 54 . Average 48 | . . 30 60 54 . Maximum Alert Level . | . . . . . . Low Security (%) 100 | 100 100 100 100 100 . Level 1 . | . . . . . . Level 2 . | . . . . . . Level 3 . | . . . . . . Level 4 . | . . . . . . Level 5 . | . . . . . . High Security . | . . . . . . Max Security . | . . . . . . Squads Dispatched 4 | . . 1 2 1 . Investigation 1 | . . 1 . . . Extermination . | . . . . . . Reinforcement 3 | . . . 2 1 . Assault . | . . . . . . Garrison . | . . . . . . Intercept . | . . . . . . Construction Impeded . | . . . . . . Haulers Reinforced . | . . . . . . Stealth | -11 -10 -9 -8 -7 -7 --------- Run | Scr Mat Mat Mat Fac Low Distress Signals 4 | . . 1 3 . . Communications Jammed . | . . . . . . Distress Signals . | . . . . . . Times Spotted 57 | . . 15 23 1 18 Peak Tracking Total 15 | . . 15 14 . 15 Tactical Retreats 4 | . . 1 2 . 1 Traps | -11 -10 -9 -8 -7 -7 ------- Run | Scr Mat Mat Mat Fac Low Traps Triggered 1 | . . 1 . . . Indirectly . | . . . . . . Trap Hack Attempts . | . . . . . . Triggered . | . . . . . . Disarmed . | . . . . . . Reprogrammed . | . . . . . . Reused . | . . . . . . Traps Extracted . | . . . . . . Installed . | . . . . . . Triggered . | . . . . . . Machines | -11 -10 -9 -8 -7 -7 ---------- Run | Scr Mat Mat Mat Fac Low Machines Disabled . | . . . . . . Max in Single Turn . | . . . . . . Machines Sabotaged . | . . . . . . Garrisons Compromised . | . . . . . . Overloaded Fab Kills . | . . . . . . Fab Network Shutdowns . | . . . . . . Hacking | -11 -10 -9 -8 -7 -7 --------- Run | Scr Mat Mat Mat Fac Low Machines Accessed 3 | . 1 . 1 . 1 Terminals 1 | . . . . . 1 Fabricators . | . . . . . . Repair Stations . | . . . . . . Recycling Units 2 | . 1 . 1 . . Scanalyzers . | . . . . . . Garrison Access . | . . . . . . Total Hacks 10 | . 3 . 2 . 5 Successful 9 | . 2 . 2 . 5 Failed 1 | . 1 . . . . Catastrophic . | . . . . . . Database Lockouts . | . . . . . . Manual . | . . . . . . Terminals 5 | . . . . . 5 Fabricators . | . . . . . . Repair Stations . | . . . . . . Recycling Units 5 | . 3 . 2 . . Scanalyzers . | . . . . . . Garrison Access . | . . . . . . Terminal Hacks 5 | . . . . . 5 Record 5 | . . . . . 5 Fabricator Hacks . | . . . . . . Repair Station Hacks . | . . . . . . Recycling Unit Hacks 4 | . 2 . 2 . . Report Inventory 2 | . 1 . 1 . . Retrieve Components 2 | . 1 . 1 . . Scanalyzer . | . . . . . . Garrison Access Hacks . | . . . . . . Unauthorized Hacks . | . . . . . . Terminals . | . . . . . . Fabricators . | . . . . . . Repair Stations . | . . . . . . Recycling Units . | . . . . . . Scanalyzers . | . . . . . . Garrison Access . | . . . . . . Data Cores Recovered . | . . . . . . Used . | . . . . . . Hacking Detections 1 | . . . . . 1 Full Trace Events 1 | . . . . . 1 Feedback Events . | . . . . . . Feedback Blocked . | . . . . . . Robot Schematics Acquired . | . . . . . . Robots Built . | . . . . . . Matter . | . . . . . . Time . | . . . . . . Total Robot Build Rating . | . . . . . . Part Schematics Acquired . | . . . . . . Parts Built . | . . . . . . Matter . | . . . . . . Time . | . . . . . . Total Part Build Rating . | . . . . . . Parts Repaired . | . . . . . . Time . | . . . . . . Parts Recycled . | . . . . . . Recycled Matter . | . . . . . . Retrieved Matter . | . . . . . . Retrieved Components 4 | . 3 . 1 . . Parts Scanalyzed . | . . . . . . Part Schematics Acquired . | . . . . . . Parts Damaged . | . . . . . . Bothacking | -11 -10 -9 -8 -7 -7 ------------ Run | Scr Mat Mat Mat Fac Low Used RIF Installer . | . . . . . . Robots Hacked . | . . . . . . Non-combat . | . . . . . . Combat . | . . . . . . Robot Hacks Applied . | . . . . . . Relay Couplers Released . | . . . . . . Robots Rewired . | . . . . . . Allies Hacked . | . . . . . . Hacks Repelled . | . . . . . . Allies | -11 -10 -9 -8 -7 -7 -------- Run | Scr Mat Mat Mat Fac Low Total Allies . | . . . . . . Largest Group . | . . . . . . Highest-Rated Group . | . . . . . . Highest-Rated Ally . | . . . . . . Total Orders . | . . . . . . Ally Attacks . | . . . . . . Total Damage . | . . . . . . Kills . | . . . . . . Allies Corrupted . | . . . . . . Allies Melted . | . . . . . . Intel | -11 -10 -9 -8 -7 -7 ------- Run | Scr Mat Mat Mat Fac Low Robot Analysis Total . | . . . . . . Derelict Logs Recovered 1 | . . . . . 1 Drone Launches . | . . . . . . Drone Recoveries . | . . . . . . Exploration | -11 -10 -9 -8 -7 -7 ------------- Run | Scr Mat Mat Mat Fac Low Turns Passed 473 | 13 41 39 276 38 66 Spaces Moved 697 | 18 88 97 295 71 128 Core 357 | 18 16 . 124 71 128 Treads . | . . . . . . Legs . | . . . . . . Wheels . | . . . . . . Hover . | . . . . . . Flight 340 | . 72 97 171 . . Fastest Speed 37 | 50 40 40 37 50 50 Average Speed 57 | 50 41 40 72 50 50 Slowest Speed 150 | 50 50 40 150 50 50 Overloaded Moves . | . . . . . . Propulsion Burnouts . | . . . . . . Robots Hopped 2 | . . 2 . . . Cave-ins Triggered . | . . . . . . Exploration Rate (%) 18 | 3 24 20 31 3 30 Regions Visited 5 Branch Regions 1 Pre-discovered Areas 2 | . . . . . 2 Known Exits Taken . | . . . . . . Unknown Exits Taken 5 | 1 1 1 1 1 . Scrap Searched 1 | . . . . . 1 Spaces Dug . | . . . . . . Terrain Destroyed . | . . . . . . Melee . | . . . . . . Projectile . | . . . . . . AOE . | . . . . . . Terrain Rammed . | . . . . . . Walls Destroyed . | . . . . . . Machines Disabled . | . . . . . . Actions | -11 -10 -9 -8 -7 -7 --------- Run | Scr Mat Mat Mat Fac Low Total 738 | 21 91 94 332 71 129 Wait 6 | . 2 . 3 . 1 Move 688 | 17 87 92 294 70 128 Hop 2 | . . 2 . . . Pick Up 3 | . 1 . 2 . . Fast Attach 10 | 1 1 . 8 . . Attach 2 | . . . 2 . . Detach 1 | . . . 1 . . Swap 1 | . . . 1 . . Drop 6 | . . . 6 . . Fire . | . . . . . . Melee 16 | . . . 15 1 . Ram 3 | 3 . . . . . Kick . | . . . . . . Crush . | . . . . . . Escape Stasis . | . . . . . . Rewire . | . . . . . . Trap . | . . . . . . Miscellaneous . | . . . . . . Route ------- -11/Scrapyard -10/Materials -9/Materials -8/Materials -7/Factory -7/Lower Caves History --------- Turn | Location | Event 4 | -11/Scrapyard | Discovered new exit (range 15) 14 | -11/Scrapyard | Entered Materials 52 | -10/Materials | Discovered new exit (range 5) 55 | -10/Materials | Entered another Materials area 55 | -9/Materials | Evolved 2 slots: Power x1, Propulsion x1 91 | -9/Materials | Discovered new exit (range 8) 94 | -9/Materials | Entered another Materials area 94 | -8/Materials | Evolved 2 slots: Propulsion x1, Utility x1 309 | -8/Materials | Build established: Mutant 360 | -8/Materials | Discovered new exit (range 15) 370 | -8/Materials | Entered Factory 370 | -7/Factory | Evolved 2 slots: Propulsion x2 401 | -7/Factory | Discovered new exit (range 16) 408 | -7/Factory | Entered Lower Caves 463 | -7/Lower Caves | Attracted the attention of an 0b10 base 474 | -7/Lower Caves | Learned location of Extension (-4) 474 | -7/Lower Caves | Learned location of 1 exit from Research 474 | -7/Lower Caves | Learned 6 Upper Caves zone layouts 474 | -7/Lower Caves | Self-destructed Last Messages --------------- S-27 Virus springs to life. G-47 Trooper springs to life. S-27 Virus springs to life. Machine disabled. Connecting with Terminal... Current location identified: Lower Caves >>Query(Status Report 419A) RECEIVED DETACHMENT. >>Query(Status Report 201X) INTERCEPTED DERELICT INTEL. World map updated: -4/Extension. >>Query(Status Report 825X) INTERCEPTED DERELICT INTEL. Data stored: Research exits (x1). >>Query(Status Report 112X) INTERCEPTED DERELICT INTEL. Data stored: Research entrances (x1). >>Query(Status Report 452X) INTERCEPTED DERELICT INTEL. Data stored: Upper Caves zone layouts (x6). Map ----- +----------------------------------------------------+ | | | | | | | | | | | ?????????????????????????????????????????????????? | | ?????????????????????????????????????????????????? | | ?????????????????????????????????????????????????? | | ?????????????????????????????????????????????????? | | ?????????????????????????????????????????????????? | | ?????????????????????????????????????????????????? | | ?????????????????????????????????????????????????? | | ?????????????????????????????????????????????????? | | ?????????????????????????????????????????????????? | | ?????????????????????????????????????????????????? | | ?????????????????????????????????????????????????? | | ?????????????????????????????????????????????????? | | ?????????????????????????????????????????????????? | | ??????????######################?????????????????? | | ??????????# #???????????####### | | ??????????# #??????????## | | ??????????# #######//####### #??????????# | | ??????????# #" #""""#]=#??????????# | | ???????#### #"" #""""#% ###????????###### | | ??????## #" ####+#" T"#]= #?????????????# | | ##### #"" #""" p @ # #??????????#### | | #" # # ##????????## | | / #gs """ # ##????#### | | ### / ss """ # #???## | | # ???# + sgg """ # #??## | | #?????## + # g """ # ##??# ## | | ???????# #" # # ###???# #######" | | ???????# #"" #""" # #?????# #??????" | | ??????# #" ####/#""""# #????#### #####??# | | ?????# #"" ?? #????# ##????# #??? | | ?????# #" ? #????# #?????# #??? | | ?????# ## #######++####### ####??# """ """#??? | | ?????# ?# ? ## #??# """ """#??? | | ?????## #?# ? #??# """ """#??? | | ??????##??###? ### #### #??# " " #??? | | ?????????????????????# ????# #### """"" #??? | | ????????????????????# ?????## ## """"" | | ??????????????????? ???????### """ | | ????????????????? ??????????# | | ????????????????? ????????????# ## | | ????????????????? ????????????# #?? | | ??????????????????????????????# ### #?? | | ?????????????????????????????# #?# ## #? | | ?????????????????????????????# #?# ##? # | | ?????????????????????????????# # ?## ##??? ## | +----------------------------------------------------+ Best States ------------- Heat Dissipation 34 Energy Generation 14 Energy Capacity 140 Matter Stores 99 Matter Capacity 300 Sight Range 16 Terrain Scan Density 10 Evasion (%) 62 Armor Integrity Analysis 33 Item Schematics ----------------- None Robot Schematics ------------------ None Fabricated ------------ Nothing Alien Tech Used ----------------- None Achievements -------------- None Challenges ------------ None Game ------ Seed CatalystGuidanceShielding Manual? 0 Play Time 00:07:15 Cumulative 3.6 hours Start 2020.09.15 @ 12:55:55 End 2020.09.15 @ 13:02:13 Sessions 1 Manual Loads 0 Difficulty Rogue Special Mode None Game No. 13 Rogue 13 Adventurer 0 Explorer 0 Win Type - Total 0 Types 0/0/0/0/0/0/0/0/0 Lore% 11 Gallery% 14 Achievement% 13 Wizard Run 0 Options --------- ASCII 0 Keyboard 0 Movement Numpad Keybinds 0 Fullscreen 1 Font 18/TerminusBold Map View 76x50 Tactical HUD 0 Map Filters NONE Filters NONE Steam 1 RUN: a038dc04-6c4c-49d3-8b6f-30f0ed791596